bitfinex/quotes_ETHUSD_20250130
["timestamp","ask_amount","ask_price","bid_price","bid_amount"]
[1738256752608,3.0471,3281.8,3281.7,9.48]
[1738256753720,3.0471,3281.8,3281.7,8.93]
[1738256754306,3.0471,3281.8,3280.6,0.6237592]
[1738256754307,3.04738,3281.5,3281.4,8.93]
[1738256754507,3.04766,3281.3,3280.9,0.8075]
[1738256754714,3.048,3280.9,3280.6,0.8063]
[1738256754934,3.04812,3280.7,3280.6,0.8063]
[1738256755095,3.04831,3280.5,3280.4,8.93]
[1738256755437,3.04831,3280.5,3279.7,2.83021158]
[1738256755438,3.04831,3280.5,3280.2,8.93]
[1738256755637,3.0485,3280.3,3279.9,0.7957]
[1738256755931,3.0486,3280.2,3280.0,9.90257]
[1738256756131,3.0486,3280.2,3280.1,8.93]
[1738256757724,3.0486,3280.2,3279.2,3.65176514]
[1738256757725,3.0,3280.2,3279.6,8.93]
[1738256757890,3.04896,3279.8,3279.7,8.93]
[1738256759188,6.04896,3279.8,3279.7,8.93]
[1738256760828,6.04896,3279.8,3279.7,9.48]
[1738256761027,6.04896,3279.8,3279.7,8.93]
[1738256761263,6.81496,3279.8,3279.7,8.93]
[1738256763436,3.04965,3279.1,3278.9,8.93]
[1738256763655,3.0498,3278.9,3278.4,0.7822]
[1738256764061,0.7966,3279.2,3278.5,8.93]
[1738256764381,3.05034,3278.4,3277.5,3.05107]
[1738256764673,3.05034,3278.4,3277.8,0.8003]
[1738256764837,3.05037,3278.3,3277.9,0.55]
[1738256765033,3.05045,3278.2,3277.9,0.55]
[1738256765277,3.05045,3278.2,3277.8,0.8003]
[1738256765452,3.05045,3278.2,3277.9,0.385118]
[1738256765790,3.05054,3278.1,3277.9,0.385118]
[1738256765941,3.05064,3278.0,3277.8,0.8003]
[1738256766138,3.05064,3278.0,3277.6,0.60139176]
[1738256766373,3.05074,3277.9,3277.6,0.60139176]
[1738256766563,3.05091,3277.7,3277.2,0.7632]
[1738256766890,3.05107,3277.6,3277.2,0.7632]
[1738256767040,3.05091,3277.7,3277.2,0.7632]
[1738256767242,3.05091,3277.7,3276.9,3.05166]
[1738256767538,3.05091,3277.7,3277.1,0.55]
[1738256767792,3.05111,3277.5,3277.1,0.55]
[1738256768086,3.05111,3277.5,3276.9,0.8077]
[1738256768376,3.05138,3277.3,3277.2,8.93]
[1738256769079,3.05155,3277.1,3277.0,8.93]
[1738256769252,3.05203,3276.5,3276.1,8.93]
[1738256769451,3.05229,3276.3,3276.2,8.93]
[1738256769870,6.05229,3276.3,3276.2,8.93]
[1738256770071,3.05231,3276.2,3275.5,8.93]
[1738256770381,2.83021158,3276.1,3275.6,9.90169]
[1738256770590,3.05277,3275.8,3275.6,8.93]
[1738256770767,3.05294,3275.6,3275.0,0.7869]
[1738256771075,3.05278,3275.7,3275.0,0.7869]
[1738256771291,2.83021158,3275.8,3275.1,8.93]
[1738256771439,3.05294,3275.6,3275.1,8.93]
[1738256771775,3.05266,3275.9,3275.3,0.55]
[1738256771981,3.05272,3275.8,3275.3,0.55]
[1738256772180,3.05269,3275.8,3275.3,0.55]
[1738256772380,6.05252,3276.0,3275.3,0.55]
[1738256772703,6.05252,3276.0,3275.5,0.55]
[1738256772978,3.0526,3275.9,3275.5,0.910299]
[1738256773279,3.0526,3275.9,3275.3,0.55]
[1738256773477,3.05273,3275.8,3275.3,0.55]
[1738256773642,6.05255,3276.0,3275.3,3.60315]
[1738256773847,3.05261,3275.9,3275.3,0.55]
[1738256774043,3.05277,3275.8,3275.3,0.55]
[1738256774491,3.05277,3275.8,3275.4,0.457486]
[1738256774946,3.0,3276.0,3275.4,0.457486]
[1738256775143,3.05267,3275.9,3275.6,0.55]
[1738256775384,3.05232,3276.2,3275.6,0.55]
[1738256775590,3.05269,3275.8,3275.6,0.55]
[1738256776113,3.05269,3275.8,3275.0,6.89361]
[1738256776114,0.0075,3276.1,3275.3,8.93]
[1738256776400,3.05306,3275.4,3275.3,8.93]
[1738256776989,3.7638,3275.5,3274.6,8.93]
[1738256777162,3.05338,3275.1,3274.7,9.89831]
[1738256777558,0.7638,3275.5,3274.7,9.89831]
[1738256777559,3.05306,3275.4,3274.7,9.89831]
[1738256777798,3.05334,3275.2,3274.7,9.89831]
[1738256778102,3.0452287,3275.2,3274.7,8.93]
[1738256778386,3.0452287,3275.2,3274.8,0.55]
[1738256779598,3.05306,3275.4,3274.8,0.55]
[1738256780130,6.05299,3275.5,3274.9,3.05346]
[1738256780425,3.05278,3275.7,3275.3,0.55]
[1738256780725,3.05278,3275.7,3275.5,0.55]
[1738256780927,3.05287,3275.6,3275.5,0.55]
[1738256782761,6.10553,3275.8,3275.5,0.55]
[1738256782895,3.0528,3275.7,3275.5,0.55]
[1738256783739,3.05276,3275.8,3275.5,0.55]
[1738256784033,3.05287,3275.6,3275.3,0.55]
[1738256786282,3.05306,3275.4,3274.6,3.80878]
[1738256786483,0.8126,3275.6,3274.7,9.310878]
[1738256786822,3.05358,3274.9,3274.7,8.93]
[1738256787623,3.05358,3274.9,3274.8,0.55]
[1738256787838,3.05358,3274.9,3274.8,8.93]
[1738256788150,3.0538,3274.6,3274.5,8.93]
[1738256788432,3.05377,3274.7,3274.5,8.93]
[1738256788782,6.05377,3274.7,3274.6,0.55]
[1738256788990,6.05377,3274.7,3274.5,8.93]
[1738256788991,3.0538,3274.6,3274.5,8.93]
[1738256789636,6.8261,3274.6,3274.5,8.93]
[1738256791021,3.05436,3274.0,3273.9,8.93]
[1738256791223,3.05466,3273.7,3273.5,8.93]
[1738256791448,3.05483,3273.5,3273.4,0.47057467]
[1738256791673,3.05464,3273.7,3273.2,8.93]
[1738256791924,3.05502,3273.3,3273.0,0.47057467]
[1738256792125,3.05502,3273.3,3273.1,0.55]
[1738256792290,3.0552,3273.1,3273.0,0.47057467]
[1738256793235,3.05502,3273.3,3273.0,0.47057467]
[1738256793416,3.0552,3273.1,3273.0,0.73310569]
[1738256793938,6.8095,3273.1,3273.0,0.73310569]
[1738256794136,6.817,3273.1,3273.0,0.73310569]
[1738256794310,6.817,3273.1,3273.0,5.69e-06]
[1738256794819,6.817,3273.1,3271.6,12.07678502]
[1738256794820,3.05558,3272.7,3271.6,12.07678502]
[1738256795025,3.05651,3271.7,3271.6,12.07678502]
[1738256795223,3.05622,3272.1,3271.6,12.07678502]
[1738256795437,0.208,3272.2,3271.6,12.07678502]
[1738256795623,3.26407,3272.2,3271.7,0.55]
[1738256796146,3.05607,3272.2,3271.7,0.55]
[1738256796303,3.0,3272.2,3271.7,2.13516901]
[1738256796835,3.0,3272.3,3271.7,5.19167901]
[1738256797431,6.05601,3272.3,3271.7,5.19167901]
[1738256797598,6.05601,3272.3,3271.7,3.60649]
[1738256797976,3.43840706,3272.6,3272.0,0.55]
[1738256798103,3.05541,3272.9,3272.2,3.60603]
[1738256798435,3.05504,3273.3,3272.2,3.606]
[1738256798621,3.0,3273.0,3272.5,3.60575]
[1738256798808,6.05531,3273.0,3272.5,0.55]
[1738256799015,3.0,3273.0,3272.5,0.55]
[1738256799220,6.05536,3273.0,3272.4,0.55]
[1738256799407,3.05542,3272.9,3272.4,0.55]
[1738256799612,3.05569,3272.6,3272.4,0.55]
[1738256799841,3.05562,3272.7,3272.5,8.93]
[1738256800023,3.05567,3272.6,3272.5,8.93]
[1738256800539,3.05623,3272.0,3271.9,8.93]
[1738256800699,3.05623,3272.0,3271.6,8.93]
[1738256800905,3.05642,3271.8,3271.6,8.93]
[1738256801237,3.05623,3272.0,3271.8,0.55]
[1738256801424,3.05634,3271.9,3271.7,8.93]
[1738256801912,3.05632,3271.9,3271.8,9.48]
[1738256802115,3.05632,3271.9,3271.8,8.93]
[1738256802652,3.0566,3271.6,3271.1,0.7548]
[1738256803213,3.0566,3271.6,3270.9,3.05725]
[1738256803408,3.43840706,3271.8,3271.0,3.05716]
[1738256803644,3.05651,3271.7,3271.6,0.55]
[1738256804325,3.0,3271.8,3271.6,0.55]
[1738256804716,6.05643,3271.8,3271.6,0.55]
[1738256805257,3.05651,3271.7,3271.6,0.55]
[1738256805488,3.05651,3271.7,3271.0,0.801]
[1738256805658,3.0566,3271.6,3271.0,0.801]
[1738256805959,3.0,3271.8,3271.6,0.55]
[1738256806258,3.05651,3271.7,3271.6,0.55]
[1738256806465,3.05651,3271.7,3271.5,0.1682151]
[1738256806758,3.0566,3271.6,3271.5,0.1682151]
[1738256809157,3.05653,3271.7,3271.5,0.1682151]
[1738256809553,3.0566,3271.6,3271.5,0.1682151]
[1738256809938,6.05643,3271.8,3271.5,0.1682151]
[1738256810367,3.0566,3271.6,3271.5,0.1682151]
[1738256810669,3.05658,3271.7,3271.5,0.1682151]
[1738256811173,3.0,3271.9,3271.5,0.1682151]
[1738256811344,6.05635,3271.9,3271.5,0.1682151]
[1738256811545,3.05642,3271.8,3271.6,0.55]
[1738256812779,3.0,3271.9,3271.6,0.55]
[1738256812929,3.05647,3271.8,3271.6,0.55]
[1738256813666,3.05607,3272.2,3271.6,0.55]
[1738256813868,3.05638,3271.9,3271.6,0.55]
[1738256814374,3.05632,3272.0,3271.6,0.55]
[1738256814563,3.05618,3272.1,3271.6,0.55]
[1738256814766,3.05611,3272.2,3271.8,0.55]
[1738256814996,3.0,3272.1,3271.8,0.55]
[1738256815150,3.05579,3272.5,3271.9,3.05625]
[1738256815358,0.8277,3272.8,3271.9,3.05625]
[1738256815359,3.05575,3272.6,3272.1,0.55]
[1738256815663,3.05575,3272.6,3272.0,3.08675935]
[1738256815664,3.0,3272.5,3272.0,0.55]
[1738256815865,3.05614,3272.1,3271.8,0.498347]
[1738256816035,3.05614,3272.1,3271.8,1.048347]
[1738256816231,3.05601,3272.3,3271.8,1.048347]
[1738256816458,3.05601,3272.3,3272.0,0.55]
[1738256816848,3.05579,3272.5,3272.0,0.55]
[1738256817301,6.05568,3272.6,3272.0,0.55]
[1738256817449,3.0558,3272.5,3272.0,0.55]
[1738256817651,3.0,3272.6,3272.0,0.55]
[1738256817967,3.05595,3272.3,3272.0,0.55]
[1738256818450,3.05612,3272.2,3272.0,0.55]
[1738256818651,3.05612,3272.2,3271.7,0.8269]
[1738256818864,3.05612,3272.2,3271.7,2.12507851]
[1738256819206,3.05612,3272.2,3271.8,0.55]
[1738256819997,3.05614,3272.1,3271.8,0.55]
[1738256820204,3.05632,3271.9,3271.5,0.1682151]
[1738256820416,3.05642,3271.8,3271.5,0.1682151]
[1738256820559,3.0566,3271.6,3271.5,0.1682151]
[1738256820754,0.208,3271.6,3271.5,0.1682151]
[1738256820961,4.0551,3271.6,3271.5,0.1682151]
[1738256821174,7.0551,3271.6,3271.5,0.1682151]
[1738256822692,7.66092701,3271.6,3271.5,0.1682151]
[1738256823298,7.66092701,3271.6,3271.5,5.1e-06]
[1738256825160,3.43840706,3271.9,3271.5,5.1e-06]
[1738256825404,3.0566,3271.6,3271.5,5.1e-06]
[1738256829017,3.8864,3271.6,3271.5,5.1e-06]
[1738256829904,3.8939,3271.6,3271.5,5.1e-06]
[1738256830997,6.8939,3271.6,3271.5,5.1e-06]
[1738256831195,6.8864,3271.6,3271.5,5.1e-06]
[1738256831402,7.0974,3271.6,3271.5,5.1e-06]
[1738256831603,6.0566,3271.6,3271.5,5.1e-06]
[1738256832078,4.19880706,3271.9,3271.5,5.1e-06]
[1738256832079,6.49476706,3271.9,3271.5,5.1e-06]
[1738256832263,6.49440706,3272.3,3271.6,0.55]
[1738256832466,3.43840706,3272.3,3271.8,3.60634]
[1738256832891,3.05587,3272.4,3271.8,3.60634]
[1738256833278,3.05596,3272.3,3271.8,0.55]
[1738256833597,4.78750149,3272.5,3271.8,3.60641]
[1738256833803,1.73169149,3272.5,3272.1,0.8004]
[1738256833964,4.78746149,3272.5,3272.2,0.55]
[1738256834603,3.05586,3272.4,3272.2,0.55]
[1738256834898,4.78746149,3272.5,3272.2,0.55]
[1738256835072,1.73169149,3272.5,3272.2,0.55]
[1738256835276,1.73169149,3272.5,3272.2,0.990655]
[1738256835863,1.73169149,3272.5,3272.4,0.55]
[1738256837201,1.73169149,3272.5,3272.4,3.60586]
[1738256837403,6.49316706,3273.6,3272.4,0.55]
[1738256837602,6.49316706,3273.6,3272.2,0.47121152]
[1738256837603,3.0547,3273.7,3273.1,3.05519]
[1738256838009,3.05446,3273.9,3273.2,3.6051]
[1738256838190,3.05457,3273.8,3273.4,0.55]
[1738256838394,3.05446,3273.9,3273.4,0.55]
[1738256839196,3.05456,3273.8,3273.4,0.55]
[1738256839413,3.05446,3273.9,3273.4,0.55]
[1738256839919,3.43840706,3274.0,3273.4,4.04069]
[1738256840139,3.43840706,3274.0,3273.6,0.55]
[1738256840488,3.43840706,3274.0,3273.5,0.55]
[1738256840803,6.49278706,3274.0,3273.5,0.55]
[1738256841488,3.0545,3273.9,3273.5,0.55]
[1738256841686,3.05465,3273.7,3273.5,0.55]
[1738256842029,3.05423,3274.2,3273.3,0.7526]
[1738256842030,3.05474,3273.6,3273.3,0.7526]
[1738256842382,3.05474,3273.6,3273.4,0.55]
[1738256843132,3.05476,3273.6,3273.4,0.55]
[1738256843817,0.7863,3273.9,3272.6,0.7823]
[1738256843818,3.05513,3273.2,3272.6,0.7823]
[1738256844020,3.05518,3273.2,3272.6,0.7823]
[1738256844224,3.05529,3273.1,3272.6,0.7823]
[1738256844393,3.05547,3272.9,3272.6,0.7823]
[1738256845384,3.05555,3272.8,3272.6,0.7823]
[1738256845588,3.05547,3272.9,3272.6,0.7823]
[1738256845589,3.05547,3272.9,3272.7,0.55]
[1738256846818,3.05548,3272.8,3272.7,0.55]
[1738256847016,3.05595,3272.4,3272.2,0.8219]
[1738256847358,3.05595,3272.4,3271.5,5.1e-06]
[1738256847359,3.05614,3272.1,3271.7,0.8219]
[1738256847578,3.05589,3272.4,3271.7,1.20975851]
[1738256847718,3.05601,3272.3,3271.8,0.55]
[1738256847913,3.05605,3272.2,3271.8,0.55]
[1738256848153,3.05601,3272.3,3271.7,0.8219]
[1738256848518,3.05601,3272.3,3271.8,0.55]
[1738256848839,3.05605,3272.2,3271.8,0.55]
[1738256849255,3.05573,3272.6,3271.9,3.05631]
[1738256849545,3.05582,3272.5,3272.0,0.55]
[1738256849937,6.11167,3272.5,3272.0,0.55]
[1738256850167,3.0,3272.6,3272.0,3.60623]
[1738256850345,6.05569,3272.6,3272.0,3.60623]
[1738256850662,3.05579,3272.5,3271.9,0.55]
[1738256850863,3.05587,3272.4,3271.9,0.55]
[1738256851229,3.05526,3273.1,3271.7,0.8219]
[1738256851549,3.0562,3272.1,3271.8,0.55]
[1738256852528,3.05605,3272.2,3271.8,0.55]
[1738256853039,3.05616,3272.1,3271.8,0.55]
[1738256853245,3.05597,3272.3,3271.8,0.55]
[1738256853449,3.05579,3272.5,3272.0,3.05622]
[1738256853766,3.05579,3272.5,3271.9,0.44284]
[1738256853918,3.05602,3272.3,3271.8,0.55]
[1738256854118,3.05611,3272.2,3271.8,0.55]
[1738256854385,3.05602,3272.3,3271.8,0.55]
[1738256854688,3.05579,3272.5,3271.8,0.55]
[1738256854881,6.11163,3272.5,3271.8,3.60639]
[1738256855084,3.05582,3272.5,3271.9,0.442829]
[1738256855436,3.05582,3272.5,3271.9,3.499149]
[1738256855638,3.05559,3272.7,3272.3,0.7879]
[1738256855986,6.11124,3272.7,3272.4,0.55]
[1738256856284,3.05559,3272.7,3272.4,0.55]
[1738256856985,6.0554,3272.9,3272.4,0.55]
[1738256856986,3.05574,3272.6,3272.4,0.55]
[1738256857281,3.05553,3272.8,3272.4,0.55]
[1738256857456,3.05562,3272.7,3272.4,0.55]
[1738256858188,3.05565,3272.7,3272.4,0.55]
[1738256858391,3.05568,3272.6,3272.4,0.55]
[1738256858958,3.05556,3272.8,3272.4,0.55]
[1738256859157,3.05523,3273.1,3272.6,0.55]
[1738256859365,3.05506,3273.3,3272.6,4.021181]
[1738256859692,3.05506,3273.3,3272.9,0.55]
[1738256860044,6.49314706,3273.6,3273.0,3.05524]
[1738256860243,3.05477,3273.6,3273.1,0.55]
[1738256860470,0.7515,3273.9,3273.1,0.910524]
[1738256860669,6.05488,3273.5,3272.9,0.55]
[1738256860874,6.05488,3273.5,3272.9,3.60536]
[1738256861584,3.05508,3273.3,3272.9,0.55]
[1738256862011,6.05484,3273.5,3273.0,3.05524]
[1738256862208,3.0,3273.5,3273.1,3.6052]
[1738256862413,3.05457,3273.8,3273.2,3.721084]
[1738256862707,3.0,3273.7,3273.4,0.55]
[1738256864388,6.1092,3273.8,3273.4,0.55]
[1738256864775,3.43840706,3274.0,3273.4,3.60491]
[1738256864986,3.43840706,3274.0,3273.5,0.55]
[1738256865181,3.43840706,3274.0,3273.6,0.360491]
[1738256865508,6.49279706,3274.0,3273.9,0.55]
[1738256865991,3.05446,3273.9,3273.8,0.7813]
[1738256866310,3.43840706,3274.0,3273.8,0.7813]
[1738256866612,3.43840706,3274.0,3273.9,0.55]
[1738256866965,6.49276706,3274.0,3273.9,0.55]
[1738256867509,3.05474,3273.6,3273.1,0.7694]
[1738256868512,3.05474,3273.6,3273.2,0.55]
[1738256868864,3.05463,3273.8,3273.2,3.6051]
[1738256869190,3.0,3273.9,3273.5,0.55]
[1738256869778,3.43840706,3274.0,3273.6,3.05473]
[1738256869982,3.05422,3274.2,3273.6,3.05473]
[1738256870184,3.05422,3274.2,3273.5,3.60476]
[1738256870379,3.0,3274.3,3273.8,3.60452]
[1738256870796,6.49242706,3274.4,3273.8,3.60452]
[1738256871313,3.05408,3274.3,3273.8,3.60452]
[1738256872067,3.05428,3274.1,3273.8,0.55]
[1738256872270,3.05446,3273.9,3273.8,0.55]
[1738256872669,3.05428,3274.1,3273.8,0.55]
[1738256872870,3.05436,3274.0,3273.8,0.55]
[1738256873065,3.05446,3273.9,3273.3,1.3683]
[1738256873291,3.05446,3273.9,3273.3,4.42331]
[1738256873739,3.05436,3274.0,3273.3,4.42331]
[1738256873915,3.43840706,3274.4,3273.3,4.42331]
[1738256873916,3.05449,3273.9,3273.3,4.42331]
[1738256874120,3.05449,3273.9,3273.5,0.55]
[1738256874421,3.05456,3273.8,3273.4,0.55]
[1738256875006,3.05449,3273.9,3273.4,0.55]
[1738256875593,3.05449,3273.9,3273.4,3.6049]
[1738256875818,3.05449,3273.9,3273.4,0.55]
[1738256876337,3.05449,3273.9,3273.4,4.047246]
[1738256877156,6.10902,3273.9,3273.4,0.992326]
[1738256877326,3.05449,3273.9,3273.4,0.55]
[1738256878254,3.05449,3273.9,3273.4,3.60487]
[1738256878452,3.05431,3274.1,3273.6,0.55]
[1738256878612,3.0544,3274.0,3273.6,0.55]
[1738256879027,3.05431,3274.1,3273.4,0.55]
[1738256879213,3.05449,3273.9,3273.4,0.55]
[1738256880355,3.05449,3273.9,3273.5,0.442325]
[1738256880512,3.05449,3273.9,3273.4,0.55]
[1738256880853,3.05449,3273.9,3273.4,3.60491]
[1738256881355,3.05431,3274.1,3273.4,3.60491]
[1738256881523,3.0544,3274.0,3273.4,3.60491]
[1738256884364,3.05398,3274.5,3273.9,3.0544]
[1738256884573,3.05375,3274.7,3274.2,3.05413]
[1738256884732,3.05375,3274.7,3274.1,0.828]
[1738256884733,3.05356,3274.9,3274.3,0.55]
[1738256884931,3.05363,3274.8,3274.3,3.60408]
[1738256885126,3.05371,3274.7,3274.2,0.55]
[1738256885333,3.05386,3274.6,3274.2,0.55]
[1738256885584,3.05368,3274.8,3274.2,4.047389]
[1738256885893,3.05372,3274.7,3274.2,4.047389]
[1738256886232,3.05357,3274.9,3274.4,3.05397]
[1738256886545,3.05347,3275.0,3274.5,3.60388]
[1738256886947,3.05347,3275.0,3274.5,0.55]
[1738256887556,3.05347,3275.0,3274.3,0.55]
[1738256887744,3.05347,3275.0,3274.4,3.05393]
[1738256887945,3.05347,3275.0,3274.6,0.7815]
[1738256888141,2.84101276,3274.9,3274.2,0.7815]
[1738256888347,3.05397,3274.5,3274.2,0.7815]
[1738256888773,3.05377,3274.7,3274.2,0.7815]
[1738256888962,3.05377,3274.7,3274.3,0.55]
[1738256889140,3.05356,3274.9,3274.3,3.60407]
[1738256889564,3.05363,3274.8,3274.3,0.55]
[1738256890150,3.05356,3274.9,3274.3,3.60403]
[1738256890375,3.05356,3274.9,3274.5,0.55]
[1738256890990,3.05356,3274.9,3274.2,0.7815]
[1738256891169,3.05376,3274.7,3274.3,0.55]
[1738256891675,3.05336,3275.1,3274.3,4.63021]
[1738256891881,3.05336,3275.1,3274.5,3.05387]
[1738256892121,3.05349,3275.0,3274.5,3.05387]
[1738256892299,3.05336,3275.1,3274.3,4.63021]
[1738256892499,3.05336,3275.1,3274.5,3.05388]
[1738256892722,3.05336,3275.1,3274.6,1.3007]
[1738256893213,3.05319,3275.3,3274.8,0.55]
[1738256893415,3.05327,3275.2,3274.8,0.55]
[1738256894681,3.05319,3275.3,3274.7,3.60365]
[1738256894873,3.05319,3275.3,3274.8,0.435435]
[1738256895292,3.05327,3275.2,3274.8,0.435435]
[1738256895484,3.0,3275.4,3274.7,0.55]
[1738256895689,3.0534,3275.1,3274.7,0.55]
[1738256896110,3.0533,3275.2,3274.7,0.55]
[1738256896310,3.0533,3275.2,3274.7,3.6037]
[1738256896477,3.05321,3275.3,3274.8,3.05355]
[1738256896997,2.84101276,3275.8,3274.8,3.05355]
[1738256896998,3.0,3275.5,3275.0,0.7601]
[1738256897298,3.05311,3275.4,3275.0,0.7601]
[1738256897498,3.0,3275.5,3275.1,0.55]
[1738256897806,3.05288,3275.6,3275.1,0.55]
[1738256898009,3.05302,3275.5,3275.1,0.55]
[1738256898216,3.05307,3275.4,3275.1,0.55]
[1738256898570,3.05324,3275.2,3275.1,0.55]
[1738256900188,0.8192,3275.4,3274.8,8.93]
[1738256900390,0.8192,3275.4,3273.9,0.8103]
[1738256900391,3.0,3274.8,3273.9,0.8103]
[1738256900594,3.0,3274.8,3273.6,0.4731663]
[1738256900595,0.8192,3274.1,3273.6,0.4731663]
[1738256900922,3.05427,3274.1,3273.7,0.94031663]
[1738256901103,3.05427,3274.1,3273.8,0.55]
[1738256901506,3.05415,3274.3,3273.8,0.55]
[1738256901691,3.05388,3274.6,3274.0,0.55]
[1738256902030,3.0533,3275.2,3274.5,0.55]
[1738256902178,3.05308,3275.4,3274.8,0.55]
[1738256902378,3.05316,3275.3,3275.1,0.55]
[1738256902579,3.05303,3275.5,3275.1,0.55]
[1738256903009,3.05312,3275.4,3275.1,0.55]
[1738256903279,3.05316,3275.3,3275.1,0.55]
[1738256903513,3.05264,3275.9,3275.3,0.55]
[1738256903718,3.05264,3275.9,3275.5,0.55]
[1738256903917,3.0528,3275.7,3275.5,0.55]
[1738256905418,3.05287,3275.6,3275.5,0.55]
[1738256905719,3.05343,3275.0,3274.9,0.8295]
[1738256905925,3.05343,3275.0,3274.6,0.8295]
[1738256906087,3.05358,3274.9,3274.6,0.8295]
[1738256906598,3.05358,3274.9,3274.7,0.55]
[1738256907722,3.05328,3275.2,3274.7,0.55]
[1738256908028,3.05314,3275.4,3274.7,3.60364]
[1738256908322,3.05316,3275.3,3274.7,4.38287401]
[1738256908520,3.05314,3275.4,3274.7,4.38287401]
[1738256908717,3.05321,3275.3,3274.7,4.35234]
[1738256909219,3.05321,3275.3,3274.2,11.98415]
[1738256909220,3.05368,3274.8,3274.2,9.7278]
[1738256909388,3.05389,3274.6,3274.2,9.7278]
[1738256909587,3.054,3274.4,3274.2,0.7978]
[1738256909813,3.05408,3274.3,3274.2,0.7978]
[1738256910023,3.05446,3273.9,3273.8,0.8083]
[1738256910210,3.0,3274.3,3273.6,0.4731663]
[1738256910923,3.05456,3273.8,3273.6,0.4731663]
[1738256911337,3.05464,3273.7,3273.6,1.0231663]
[1738256911675,3.05456,3273.8,3273.7,1.57676047]
[1738256912743,3.05449,3273.9,3273.7,1.57676047]
[1738256913072,3.05449,3273.9,3273.7,1.00633799]
[1738256913373,3.0543,3274.1,3273.7,1.18780179]
[1738256913672,3.05412,3274.3,3273.7,4.24236179]
[1738256914167,3.05404,3274.4,3273.8,0.55]
[1738256914373,3.05422,3274.2,3273.7,0.45633799]
[1738256914567,3.05443,3274.0,3273.8,0.45633799]
[1738256914784,3.05446,3273.9,3273.8,0.45633799]
[1738256915920,6.05446,3273.9,3273.8,0.45633799]
[1738256916196,3.05483,3273.5,3273.4,0.57044635]
[1738256916404,3.05473,3273.7,3273.4,0.57044635]
[1738256916764,3.05475,3273.6,3273.5,0.55]
[1738256918153,0.823,3274.0,3273.5,0.55]
[1738256918363,0.7784,3274.6,3273.7,0.55]
[1738256918594,3.054,3274.4,3273.9,0.55]
[1738256918835,3.0,3274.3,3273.9,3.60445]
[1738256919008,3.0,3274.5,3273.9,3.60445]
[1738256919203,3.0,3274.5,3273.9,0.55]
[1738256919404,3.05428,3274.1,3273.9,0.55]
[1738256919721,3.05436,3274.0,3273.6,9.7039]
[1738256919924,3.05453,3273.9,3273.6,9.7039]
[1738256920129,3.05461,3273.8,3273.3,0.7725]
[1738256920309,3.05471,3273.7,3273.4,0.55]
[1738256920633,3.05461,3273.8,3273.4,0.55]
[1738256920634,3.05476,3273.6,3273.4,0.55]
[1738256921032,3.05476,3273.6,3273.3,0.7725]
[1738256921335,3.05497,3273.4,3273.1,14.3]
[1738256921856,3.05497,3273.4,3273.2,0.55]
[1738256921857,3.05503,3273.3,3273.2,0.55]
[1738256921991,3.05513,3273.2,3272.9,1.2456663]
[1738256922211,3.05513,3273.2,3272.9,0.4731663]
[1738256922415,3.05518,3273.2,3272.9,0.4731663]
[1738256922640,3.05518,3273.2,3273.0,0.55]
[1738256922825,3.05518,3273.2,3273.0,0.77802037]
[1738256923039,3.05518,3273.2,3273.0,1.34797712]
[1738256923813,3.0552,3273.1,3273.0,1.34797712]
[1738256924046,3.05518,3273.2,3273.0,1.34797712]
[1738256924238,3.05518,3273.2,3273.0,0.55]
[1738256924426,3.05471,3273.7,3272.9,3.05534]
[1738256924642,3.05485,3273.5,3273.0,0.910534]
[1738256924946,3.05471,3273.7,3273.1,0.8132]
[1738256925145,3.05471,3273.7,3273.2,0.55]
[1738256925460,3.05482,3273.6,3273.2,0.55]
[1738256925618,3.05484,3273.5,3273.2,0.55]
[1738256927120,3.05517,3273.2,3272.8,0.47506925]
[1738256927430,3.05495,3273.4,3272.9,3.60536]
[1738256927629,3.05478,3273.6,3273.0,3.05526]
[1738256928046,3.05478,3273.6,3272.9,0.55]
[1738256928047,3.05493,3273.4,3272.9,0.55]
[1738256928745,3.05511,3273.2,3272.9,0.55]
[1738256928927,3.05493,3273.4,3272.9,0.55]
[1738256929133,3.05503,3273.3,3272.9,0.55]
[1738256929555,6.06214,3273.7,3272.9,0.55]
[1738256929980,3.05489,3273.5,3273.0,3.05527]
[1738256930127,3.05489,3273.5,3273.0,0.40803392]
[1738256930328,3.05513,3273.2,3272.8,0.47506925]
[1738256930564,3.05507,3273.3,3272.8,1.02506925]
[1738256930768,3.05507,3273.3,3272.8,4.08053925]
[1738256930923,3.05497,3273.4,3272.8,4.08053925]
[1738256931123,3.05486,3273.5,3272.8,4.08053925]
[1738256931329,6.10976,3273.5,3272.9,0.49090393]
[1738256932029,3.05486,3273.5,3272.9,0.49090393]
[1738256932229,3.05493,3273.4,3272.9,0.49090393]
[1738256932433,6.05465,3273.7,3273.0,3.05525]
[1738256932743,3.05452,3273.9,3273.4,0.8131]
[1738256933155,3.05427,3274.1,3273.5,3.60479]
[1738256933346,3.05427,3274.1,3273.5,1.297275]
[1738256933531,3.0,3273.9,3273.5,1.297275]
[1738256933958,3.05448,3273.9,3273.5,1.297275]